[Event "Caplin Hastings Masters 2023-24"]
[Site "Hastings"]
[Date "2024.01.02"]
[Round "6.1"]
[White "Royal, Shreyas"]
[Black "Zhang, Pengxiang"]
[Result "1/2-1/2"]
[ECO "E52"]
[WhiteElo "2438"]
[BlackElo "2558"]
[Annotator "TA"]
[PlyCount "107"]
[EventDate "2023.12.18"]
[EventType "swiss"]
[EventCountry "ENG"]
[SourceTitle "playchess.com"]
[Source "ChessBase"]
[SourceQuality "1"]
[TimeControl "40/6000+30:3000+30"]

{[%evp 18,107,0,0,6,0,42,28,33,34,36,29,35,37,72,19,21,21,33,35,43,33,31,25,36,52,74,41,41,35,58,51,58,55,53,52,55,46,15,27,16,17,31,30,33,24,44,23,62,42,87,45,49,29,58,58,53,54,91,90,171,173,173,163,128,12,49,54,91,3,3,3,2,0,0,0,0,0,0,0,0,0,0,0,0,0,0,0,0,0,0,0]} 1. d4 {[%emt 0:00:09]} Nf6 {[%emt 0:00:06]} 2. c4 {[%emt 0:00:04]} e6 {[%emt 0:00:04]} 3. Nc3 {[%emt 0:01:11]} Bb4 {[%emt 0:00:07]} 4. e3 {[%emt 0:00:06]} O-O {[%emt 0:00:08]} 5. Nf3 {[%emt 0:00:08]} d5 {[%emt 0:01:11]} 6. Bd2 {[%emt 0:00:05]} b6 {[%emt 0:17:08]} 7. cxd5 {[%emt 0:00:38]} exd5 {[%emt 0:03:30]} 8. Rc1 {[%emt 0:00:05]} Bb7 {[%emt 0:03:08]} 9. Bd3 {[%emt 0:00:06]} Nbd7 {[%emt 0:13:08] 9...Re8 gains popularity.} 10. O-O {[%emt 0:00:08]} a6 {[%emt 0:04:17] E52: Nimzo-Indian: Rubinstein: 4...0-0 5 Nf3 d5 6 Bd3 b6.} 11. Ne5 {[%emt 0:01:53]} c5 {[%emt 0:01:35]} 12. Nxd7 {[%emt 0:07:42]} Qxd7 {[%emt 0:03:20] White has an edge.} 13. dxc5 {[%emt 0:05:03]} d4 {[%emt 0:08:14] [#]} 14. Ne4 $146 {[%emt 0:14:27][%mdl 64] Discovered Attack} ({Predecessor:} 14. c6 Bxc6 15. exd4 Qxd4 16. Ne2 Qxd3 17. Bxb4 Qe4 18. Rxc6 Qxc6 19. Bxf8 Rxf8 20. Nc3 {½-½ Rubio Mejia,L (2405)-Hernandez,C (2320) ESP-chT CECLUB Div1 2020 (2.3)}) 14... Bxe4 {[%emt 0:22:36]} 15. Bxb4 {[%emt 0:00:05]} dxe3 {[%emt 0:02:09]} 16. Be2 {[%emt 0:00:04]} (16. Bxe4 $16 exf2+ 17. Kh1 Qxd1 18. Bxh7+ (18. Rfxd1 Nxe4 19. cxb6 Rfe8 $11) 18... Kxh7 19. Rcxd1) 16... exf2+ {[%emt 0:06:06]} 17. Rxf2 {[%emt 0:00:10]} Qxd1+ {[%emt 0:00:52]} 18. Rxd1 {[%emt 0:01:43]} a5 {[%emt 0:00:30]} 19. Ba3 {[%emt 0:01:30]} bxc5 {[%emt 0:00:46]} 20. Bxc5 {[%emt 0:00:17]} Rfc8 {[%emt 0:00:21]} 21. Bd4 {[%emt 0:01:27]} Nd5 {[%emt 0:02:11]} 22. Rdf1 {[%emt 0:03:15]} f6 {[%emt 0:02:45]} 23. b3 {[%emt 0:00:26]} Rd8 {[%emt 0:00:29]} 24. Bc4 {[%emt 0:00:13]} Bg6 {[%emt 0:00:13]} 25. Bb6 {[%emt 0:00:22]} Rd7 {[%emt 0:00:25] Black is weak on the dark squares} 26. Rd2 {[%emt 0:15:23]} Bf7 {[%emt 0:00:01]} 27. Bb5 {[%emt 0:19:44]} Re7 {[%emt 0:01:40]} 28. Bc5 {[%emt 0:08:14] Strongly threatening Rxd5.} Rc7 {[%emt 0:00:16]} 29. Bd6 {[%emt 0:01:02] This pair of bishops is nice.} Rcc8 {[%emt 0:00:10]} 30. Re1 {[%emt 0:04:01]} h5 {[%emt 0:03:46]} 31. h4 {[%emt 0:01:36]} Ra7 {[%emt 0:02:02]} 32. Bg3 {[%emt 0:02:05]} Rc3 {[%emt 0:06:26]} 33. Bf2 {[%emt 0:00:43]} Rb7 {[%emt 0:00:49]} 34. Ba6 {[%emt 0:02:18]} Rb8 {[%emt 0:01:46]} 35. Bd4 {[%emt 0:03:51]} Rc6 {[%emt 0:01:05]} 36. Ba7 {[%emt 0:02:53]} (36. Bc4 Nb4 $11) 36... Rb4 {[%emt 0:00:25]} 37. Bc4 {[%emt 0:00:11]} Rc7 {[%emt 0:01:13]} 38. Bf2 {[%emt 0:04:06]} Nb6 {[%emt 0:01:34]} (38... Rcxc4 $16 39. bxc4 Rxc4) 39. Rd8+ $18 {[%emt 0:05:49]} Kh7 {[%emt 0:00:02] [#]} 40. Bxf7 {[%emt 0:05:40]} Rxf7 {[%emt 0:00:01] [#]} 41. Re6 {[%emt 0:50:45] White is more active.} (41. a3 $1 $16 {[%cal Ra3b4]} Rxb3 42. Rb8) 41... Rb7 {[%emt 0:08:35]} 42. Rdd6 {[%emt 0:00:00][%cal Rd6b6]} Nd7 {[%emt 0:05:48]} 43. Re7 {[%emt 0:00:00]} ({Better is} 43. Be1 $16 R4b5 44. Re7) 43... Ne5 $11 {[%emt 0:05:41] The position is equal.} 44. Rxb7 {[%emt 0:00:00]} Rxb7 {[%emt 0:00:02][%mdl 4096] Endgame KRB-KRN} 45. Ra6 {[%emt 0:00:00]} Rc7 {[%emt 0:01:30] Threatens to win with ...Rc1+.} 46. Be3 {[%emt 0:00:00] Wards off Rc1+} (46. Rxa5 $2 {perishes.} Rc1+ 47. Kh2 Ng4+ 48. Kg3 Rc3+ 49. Kf4 Nxf2 $17) 46... Ng4 {[%emt 0:06:03] ...Rd7 would be deadly.} 47. Bf4 {[%emt 0:00:00]} Rc5 {[%emt 0:00:09]} 48. g3 {[%emt 0:00:00]} g5 {[%emt 0:00:46]} 49. hxg5 {[%emt 0:00:00]} fxg5 {[%emt 0:00:04]} 50. Bd2 {[%emt 0:00:00]} Rc2 {[%emt 0:00:24]} 51. Bxg5 {[%emt 0:00:00]} ({Reject} 51. Bxa5 Rxa2 52. Ra7+ Kg6 $17) 51... Rxa2 {[%emt 0:00:12]} 52. Bd8 {[%emt 0:00:00]} Rd2 {[%emt 0:04:21]} 53. Bxa5 {[%emt 0:00:00]} Rd3 {[%emt 0:00:02][%csl LRb3,LRg3]} 54. Kg2 {[%emt 0:00:00] Weighted Error Value: White=0.13 (very precise) /Black=0.10 (very precise)} 1/2-1/2

[Event "Caplin Hastings Masters 2023-24"]
[Site "Hastings"]
[Date "2024.01.02"]
[Round "6.2"]
[White "Gasanov, Eldar"]
[Black "Lagarde, Maxime"]
[Result "1/2-1/2"]
[ECO "A81"]
[WhiteElo "2487"]
[BlackElo "2640"]
[Annotator "TA"]
[PlyCount "103"]
[EventDate "2023.12.18"]
[EventType "swiss"]
[EventCountry "ENG"]
[SourceTitle "playchess.com"]
[Source "ChessBase"]
[SourceQuality "1"]
[TimeControl "40/6000+30:3000+30"]

{[%evp 9,103,37,56,65,54,39,55,64,59,57,76,85,69,58,47,43,51,77,83,83,77,85,97,86,194,208,213,201,201,114,143,141,150,119,103,83,87,88,88,89,93,85,103,64,63,56,77,64,62,74,109,104,140,125,216,203,218,199,218,214,223,223,241,156,169,156,140,139,235,141,122,104,120,0,0,0,0,0,0,0,0,0,0,0,0,0,0,0,0,0,0,0,0,0,0,0]} 1. d4 {[%emt 0:00:59]} f5 {[%emt 0:07:27]} 2. g3 {[%emt 0:00:24]} Nf6 {[%emt 0:00:18]} 3. Bg2 {[%emt 0:00:17][%cal Bf1g2,Bg2e4,Be4d3][%mdl 32]} g6 {[%emt 0:00:35]} 4. Nd2 {[%emt 0:00:19]} Nc6 {[%emt 0:05:34][%cal Bb8c6,Bc6e5,Be5f7,Bf7d6][%mdl 32]} 5. d5 {[%emt 0:00:23]} Ne5 {[%emt 0:01:40]} 6. e4 {[%emt 0:00:11] A81: Dutch Defence: 2 g3.} fxe4 {[%emt 0:03:00]} 7. Nxe4 {[%emt 0:01:40]} Nxe4 {[%emt 0:00:20]} 8. Bxe4 {[%emt 0:00:10] White is slightly better.} Bg7 {[%emt 0:00:10] [#]} 9. Nf3 $146 {[%emt 0:04:05]} ({Predecessor:} 9. f4 Nf7 10. f5 gxf5 11. Bxf5 c6 12. Be4 Qa5+ 13. c3 Bxc3+ 14. bxc3 Qxc3+ 15. Qd2 {½-½ Kanyamarala,T (2270)-Hoang,T (2376) Olympiad Women-44 2022 (2.1)}) 9... Nf7 {[%emt 0:00:49]} 10. h4 {[%emt 0:01:50]} c6 {[%emt 0:01:30]} 11. h5 {[%emt 0:11:17]} Nd6 {[%emt 0:04:37]} 12. Bd3 {[%emt 0:01:17]} Qa5+ {[%emt 0:01:50]} 13. c3 {[%emt 0:06:33]} Qxd5 {[%emt 0:06:33]} 14. hxg6 {[%emt 0:00:45]} Qe6+ {[%emt 0:26:25]} 15. Qe2 {[%emt 0:04:13]} Qxe2+ {[%emt 0:00:15]} 16. Kxe2 {[%emt 0:00:19]} e5 {[%emt 0:00:26] Black is weak on the dark squares} (16... hxg6 $16 {was necessary.} 17. Rxh8+ (17. Bxg6+ Kf8 $16) 17... Bxh8) 17. Bh6 $18 {[%emt 0:11:59]} (17. gxh7 $6 e4 $16) (17. Rxh7 Rxh7 18. gxh7 e4 $16) 17... Bxh6 {[%emt 0:00:22]} 18. Rxh6 {[%emt 0:00:30]} e4 {[%emt 0:00:03]} 19. g7 {[%emt 0:00:39]} (19. Rxh7 exd3+ 20. Kxd3 Rxh7 21. gxh7 Nf7 $14) (19. Re1 $18) 19... Rg8 {[%emt 0:02:59]} 20. Rxd6 {[%emt 0:00:40]} exd3+ {[%emt 0:00:59]} 21. Kxd3 {[%emt 0:02:31]} Rxg7 {[%emt 0:06:50]} 22. Re1+ {[%emt 0:11:01]} Kd8 {[%emt 0:00:54]} 23. Nd4 {[%emt 0:21:20]} Kc7 {[%emt 0:00:04]} 24. Rf6 {[%emt 0:00:41] Prevents Rf7.} b6 {[%emt 0:00:16]} 25. c4 {[%emt 0:01:42]} Bb7 {[%emt 0:04:54]} 26. Nf5 {[%emt 0:00:27]} Rgg8 {[%emt 0:01:59]} 27. Re7 $36 {[%emt 0:01:59][%mdl 2048] White has good play.} Raf8 {[%emt 0:00:22]} 28. Ref7 {[%emt 0:04:48] White has more active pieces.} Rxf7 {[%emt 0:00:19]} 29. Rxf7 $14 {[%emt 0:00:02][%mdl 4096] Endgame KRB-KRN} h5 {[%emt 0:00:45]} 30. Rh7 {[%emt 0:02:06]} c5 {[%emt 0:10:03]} 31. Rxh5 {[%emt 0:01:56]} Rg4 {[%emt 0:00:07]} (31... Re8 $16) 32. f4 $18 {[%emt 0:05:11]} Rg8 {[%emt 0:00:02]} 33. Rg5 {[%emt 0:01:22]} Re8 {[%emt 0:00:06]} 34. Ne3 {[%emt 0:05:35]} Be4+ {[%emt 0:00:02]} 35. Kd2 {[%emt 0:03:39]} Rh8 {[%emt 0:00:24]} 36. Re5 {[%emt 0:00:19]} Rh2+ {[%emt 0:00:36]} 37. Kc3 {[%emt 0:00:26]} Bb1 {[%emt 0:00:09]} 38. f5 {[%emt 0:02:59]} d6 {[%emt 0:04:14]} (38... Rh8 $16 {keeps fighting.} 39. b4 cxb4+ 40. Kxb4 Kd6 41. Rd5+ Ke7) 39. Re6 {[%emt 0:01:14]} Kd7 {[%emt 0:00:36]} 40. g4 {[%emt 0:00:45] [#] aiming for Nd5.} Bxa2 {[%emt 0:07:44]} 41. Rg6 {[%emt 0:06:19]} (41. b3 $16) 41... b5 $1 $11 {[%emt 0:10:12] The position is equal.} 42. Rg7+ {[%emt 0:12:41]} (42. cxb5 $5 d5 $8 43. Nf1 (43. Rg7+ Kd6 $11) 43... Rh3+ 44. Kd2 $11) 42... Ke8 {[%emt 0:03:26] ( -> ...b4+)} 43. Nd5 {[%emt 0:07:02] Nc7+ would be deadly.} (43. Rxa7 $2 b4+ 44. Kd3 Bb1+ $19) (43. cxb5 $5 d5 $8 44. Nc2 $11 (44. Rxa7 d4+ 45. Kd3 Bb1+ {[%mdl 64] Deflection} 46. Kc4 dxe3 $11)) 43... Bxc4 {[%emt 0:12:16]} 44. Nf6+ {[%emt 0:01:10]} Kd8 {[%emt 0:08:28] [#] Strongly threatening ...d5.} 45. Rd7+ {[%emt 0:01:30]} ({Much weaker is} 45. Rxa7 d5 46. Rd7+ Kc8 47. Rxd5 Bxd5 48. Nxd5 Kd7 $17) 45... Kc8 {[%emt 0:00:02][%cal Od6d5] White must now prevent ...d5!} 46. Rxd6 {[%emt 0:00:53] Threatens to win with Rc6+.} (46. Rxa7 $2 {is the wrong capture.} d5 47. Nxd5 (47. Ra8+ $2 Kc7 $19) 47... Bxd5 $19) 46... Kc7 {[%emt 0:00:07] Wards off Rc6+} 47. Ne8+ {[%emt 0:02:00]} Kb7 {[%emt 0:00:20]} 48. f6 {[%emt 0:06:12][%cal Of6f7]} Rh3+ {[%emt 0:23:15]} 49. Kd2 {[%emt 0:02:10][%cal Of6f7]} Rh2+ {[%emt 0:00:12]} 50. Kc3 {[%emt 0:02:45][%cal Of6f7]} Rh3+ {[%emt 0:00:06]} 51. Kc2 {[%emt 0:02:32][%cal Of6f7]} Rh2+ 52. Kc3 {[%emt 0:00:30] Blacks defense is rewarded with a draw.   Weighted Error Value: White=0.14 (very precise) /Black=0.10 (very precise)} 1/2-1/2

[Event "Caplin Hastings Masters 2023-24"]
[Site "Hastings"]
[Date "2024.01.02"]
[Round "6.3"]
[White "Gupta, Abhijeet"]
[Black "Waldhausen Gordon, Frederick"]
[Result "1-0"]
[ECO "D02"]
[WhiteElo "2596"]
[BlackElo "2338"]
[Annotator "TA"]
[PlyCount "95"]
[EventDate "2023.12.18"]
[EventType "swiss"]
[EventCountry "ENG"]
[SourceTitle "playchess.com"]
[Source "ChessBase"]
[SourceQuality "1"]
[TimeControl "40/6000+30:3000+30"]

{[%evp 15,95,-4,0,0,0,-14,-19,-20,-22,-21,-13,-15,-17,-12,0,-8,-16,-36,-19,-33,49,43,54,44,76,86,122,74,93,40,122,114,107,103,166,158,174,184,177,201,303,302,577,514,908,771,766,764,693,623,652,653,650,658,650,620,816,771,961,904,1319,1309,1231,1231,1149,1134,985,959,1104,955,29960,29961,6746,5110,29955,29955,6875,6890,6487,6487,5273,5173]} 1. d4 {[%emt 0:00:15]} Nf6 {[%emt 0:00:05]} 2. Nf3 {[%emt 0:00:17]} d5 {[%emt 0:00:05]} 3. c3 {[%emt 0:00:15]} e6 {[%emt 0:00:21]} 4. Bf4 {[%emt 0:00:07]} Bd6 {[%emt 0:00:08]} 5. e3 {[%emt 0:00:06]} O-O {[%emt 0:00:17]} 6. Nbd2 {[%emt 0:00:05]} c5 {[%emt 0:00:05]} 7. Bd3 {[%emt 0:00:43]} Nc6 {[%emt 0:06:03]} 8. Bg3 {[%emt 0:00:24]} b6 {[%emt 0:00:45]} 9. e4 {[%emt 0:01:36] Hoping for e5. D02: 1 d4 d5 2 Nf3 sidelines, including 2...Nf6 3 g3 and 2...Nf6 3 Bf4.} Be7 {[%emt 0:00:42][%cal Bd6e7,Be7g5,Bg5h6,Bh6g7][%mdl 32]} 10. e5 {[%emt 0:00:22]} Nh5 {[%emt 0:00:04]} 11. Ng5 {[%emt 0:00:33][%mdl 64] Discovered Attack. The position is equal. 11.a3 is vanishing.} Bxg5 {[%emt 0:00:22]} (11... Nxg3 $2 12. Bxh7+ Kh8 13. Nxf7+ Rxf7 14. hxg3 $18) 12. Qxh5 {[%emt 0:00:05][%csl Gd3][%cal Rh5h7]} g6 {[%emt 0:00:08]} (12... cxd4 $2 13. Qxh7#) 13. Qe2 {[%emt 0:00:04]} cxd4 {[%emt 0:01:25]} 14. h4 $1 {[%emt 0:01:45]} Bh6 {[%emt 0:03:09]} 15. h5 $1 $36 {[%emt 0:02:17][%mdl 2048] And now hxg6 would win. White has good play.} dxc3 {[%emt 0:01:37]} 16. bxc3 {[%emt 0:00:07] hxg6 would be deadly.} Bg7 {[%emt 0:01:52]} 17. Nf3 {[%emt 0:00:28]} f5 {[%emt 0:04:49]} (17... Bb7 $15) 18. hxg6 $14 {[%emt 0:08:13]} hxg6 {[%emt 0:00:14]} 19. Bf4 {[%emt 0:00:47]} Qc7 {[%emt 0:01:49][%cal Oc6d4]} 20. Kf1 {[%emt 0:01:33][%mdl 1024] White has strong compensation.} Bd7 {[%emt 0:04:48]} 21. Re1 {[%emt 0:01:16] [#]} (21. Rc1 $142) 21... Nd8 $146 {[%emt 0:04:15]} ({Predecessor:} 21... Kf7 22. Rh7 Rh8 23. Ng5+ Ke8 24. Rxh8+ Bxh8 25. Qe3 Bc8 26. Qh3 Qg7 27. Bb5 Kd7 {1-0 Meiwes,T (1959)-Roth,J (1883) GER-chT U16 Aurich 2018 (3.2)}) 22. Rh3 {[%emt 0:03:27] White is more active.} ({White should play} 22. Rc1 $16) 22... Nf7 {[%emt 0:02:29] Black is on the road to losing.} ({Don't play} 22... Qxc3 23. Bd2 Qb2 24. Nh4 $11) (22... Nb7 $14) 23. Rg3 {[%emt 0:00:35]} Nh8 {[%emt 0:00:29]} 24. c4 {[%emt 0:05:05] Strongly threatening cxd5.} dxc4 {[%emt 0:07:09]} (24... Qc6 $16) 25. Bxc4 $18 {[%emt 0:00:09]} b5 {[%emt 0:01:17] [#]} 26. Bb3 {[%emt 0:01:49]} ({But not} 26. Bxb5 Rab8 27. Bc4 Qxc4 28. Qxc4 Bb5 $14) 26... a5 {[%emt 0:01:44]} 27. Ng5 {[%emt 0:05:15]} Rfe8 {[%emt 0:01:36]} (27... Ra6 $142 28. Rd3 a4) 28. Rc1 {[%emt 0:02:29]} Qb6 {[%emt 0:03:01]} (28... Qb7 {was necessary.} 29. Rgc3 Ra7) 29. Rd3 {[%emt 0:02:01]} Qa7 {[%emt 0:10:56]} (29... Rad8 $142 30. Qd1 a4) 30. Rcd1 {[%emt 0:01:57]} Bc8 {[%emt 0:03:28]} 31. Rd8 {[%emt 0:02:05][%mdl 64] Discovered Attack} Qe7 {[%emt 0:01:56] [#]} 32. Rxc8 $1 {[%emt 0:01:09][%mdl 576] Remove Defender, Decoy} Raxc8 {[%emt 0:00:12]} 33. Bxe6+ {[%emt 0:00:22]} Qxe6 {[%emt 0:00:05]} 34. Nxe6 {[%emt 0:00:03]} Rxe6 {[%emt 0:00:07]} 35. Qxb5 {[%emt 0:00:07] aiming for Qb3.} Nf7 {[%emt 0:02:14]} 36. Qb7 {[%emt 0:03:08]} Rf8 {[%emt 0:00:57]} 37. Rd7 {[%emt 0:00:58][%cal Od7f7] Rxf7! is the strong threat.} g5 {[%emt 0:09:47] [#]} 38. Rxf7 $1 {[%emt 0:00:45][%mdl 576] Deflection} Rxf7 {[%emt 0:00:10]} 39. Qc8+ {[%emt 0:00:03]} Bf8 {[%emt 0:00:18]} 40. Qxe6 {[%emt 0:00:06]} gxf4 {[%emt 0:00:05][%mdl 4096] Endgame KQ-KRB} 41. Qg6+ {[%emt 0:50:04]} Bg7 {[%emt 0:54:44]} 42. e6 {[%emt 0:00:41]} Rf6 {[%emt 0:00:39]} 43. Qe8+ {[%emt 0:00:10]} Rf8 {[%emt 0:00:05]} 44. Qd7 {[%emt 0:00:26] White threatens e7 and mate.} Bf6 {[%emt 0:00:24]} 45. e7 {[%emt 0:00:06][%mdl 64] Discovered Attack} Bxe7 {[%emt 0:03:11]} 46. Qxe7 {[%emt 0:00:24] White is clearly winning.} f3 {[%emt 0:00:12]} 47. Qg5+ {[%emt 0:00:05]} Kh7 {[%emt 0:00:06]} 48. Qh5+ {[%emt 0:00:04] Weighted Error Value: White=0.10 (very precise) /Black=0.83} 1-0

[Event "Caplin Hastings Masters 2023-24"]
[Site "Hastings"]
[Date "2024.01.02"]
[Round "6.4"]
[White "Jacobson, Brandon"]
[Black "Cherniaev, Alexander"]
[Result "1-0"]
[ECO "E56"]
[WhiteElo "2538"]
[BlackElo "2381"]
[Annotator "TA"]
[PlyCount "89"]
[EventDate "2023.12.18"]
[EventType "swiss"]
[EventCountry "ENG"]
[SourceTitle "playchess.com"]
[Source "ChessBase"]
[SourceQuality "1"]
[TimeControl "40/6000+30:3000+30"]

{[%evp 19,89,38,41,27,47,39,60,52,59,52,52,52,52,52,52,51,51,49,50,45,81,76,104,102,156,160,158,151,147,167,167,167,167,167,167,131,170,119,161,181,234,228,231,228,223,215,220,215,267,237,310,310,323,316,275,257,531,529,524,524,522,506,1353,1450,1416,1416,1258,1004,2599,2321,1749,1581]} 1. d4 {[%emt 0:00:02]} d5 {[%emt 0:06:17]} 2. c4 {[%emt 0:00:17]} e6 {[%emt 0:00:10]} 3. Nc3 {[%emt 0:01:03]} c5 {[%emt 0:02:49]} 4. e3 {[%emt 0:06:10]} Nf6 {[%emt 0:01:26]} 5. Nf3 {[%emt 0:00:11]} a6 {[%emt 0:00:05]} 6. cxd5 {[%emt 0:01:53]} exd5 {[%emt 0:00:22]} 7. Bd3 {[%emt 0:03:50]} Nc6 {[%emt 0:02:22]} 8. O-O {[%emt 0:00:36]} Bd6 {[%emt 0:22:03]} 9. dxc5 {[%emt 0:00:21]} Bxc5 {[%emt 0:00:09]} 10. h3 {[%emt 0:00:39]} O-O {[%emt 0:00:38]} 11. b3 {[%emt 0:00:05] E56: Nimzo-Indian: Rubinstein: Main Line: 7...Nc6.} Be6 {[%emt 0:08:15]} 12. Bb2 {[%emt 0:00:16]} Ba7 {[%emt 0:04:32]} 13. Rc1 {[%emt 0:05:05] White is slightly better.} Qe7 {[%emt 0:15:52] [#]} 14. Re1 $146 {[%emt 0:04:27]} ({Predecessor:} 14. Ne2 Rac8 15. Nfd4 Nxd4 16. Nxd4 Bb8 17. Qe2 Qd6 18. f4 Ba7 19. Rcd1 {½-½ Moehn,H (2382)-Savanovic,A (2358) Spilimbergo op 21st 2023 (8)}) 14... Rad8 {[%emt 0:00:34][%cal Of6e4]} 15. Ne2 {[%emt 0:00:16][%cal Od3a6]} Ne4 {[%emt 0:01:34][%cal Oe6h3]} 16. Nf4 {[%emt 0:12:17][%cal Od3a6]} Bb8 {[%emt 0:05:56]} 17. Bb1 {[%emt 0:11:48]} Rfe8 {[%emt 0:05:57]} 18. Nd4 {[%emt 0:09:38]} Nxd4 {[%emt 0:06:47]} 19. Qxd4 {[%emt 0:00:17][%csl Gb2][%cal Rd4g7] [#]} Nf6 {[%emt 0:02:20]} 20. Qd3 {[%emt 0:07:33][%cal Of4h5] Threatens to win with Nh5! White is much more active.} d4 {[%emt 0:02:48]} 21. Bxd4 {[%emt 0:04:58]} Bxf4 {[%emt 0:02:50]} (21... g6 $142) 22. Bxf6 $40 {[%emt 0:04:43][%mdl 128] Black is in trouble.} ({Don't do} 22. exf4 $6 Qd6 23. Bxf6 Qxd3 24. Bxd3 Rxd3 $16) 22... Rxd3 {[%emt 0:13:44]} 23. Bxe7 {[%emt 0:00:05]} Rd7 {[%emt 0:00:05]} 24. exf4 {[%emt 0:14:48][%cal Be3f4,Bf4f5][%mdl 32]} Rdxe7 {[%emt 0:00:07]} 25. f5 {[%emt 0:00:03]} Bd7 {[%emt 0:00:12]} 26. Rxe7 {[%emt 0:00:05]} Rxe7 $18 {[%emt 0:00:06][%mdl 4096] Endgame KRB-KRB} 27. Rc7 {[%emt 0:00:04]} Kf8 {[%emt 0:00:50]} 28. Kh2 {[%emt 0:16:00]} (28. Rxb7 $18 {Strongly threatening Bd3.} Re1+ 29. Kh2) 28... Bc6 {[%emt 0:02:35]} 29. Rc8+ {[%emt 0:00:03]} Re8 {[%emt 0:00:07]} (29... Be8 $142 30. f6 {[%mdl 64] Discovered Attack} Re6) 30. Rxe8+ {[%emt 0:00:04]} Bxe8 {[%emt 0:02:13] [#] KB-KB} 31. f6 $1 {[%emt 0:01:19][%mdl 512]} h6 {[%emt 0:00:05]} (31... h5 32. fxg7+) 32. fxg7+ {[%emt 0:00:05]} Kxg7 {[%emt 0:00:04]} 33. Kg3 {[%emt 0:00:26]} Kf6 {[%emt 0:01:32]} 34. Kf4 {[%emt 0:00:04]} Ke7 {[%emt 0:00:43]} 35. b4 {[%emt 0:02:32]} b6 {[%emt 0:00:19]} 36. Ke5 {[%emt 0:00:13]} Bc6 {[%emt 0:00:12]} 37. Be4 {[%emt 0:00:44]} f6+ $2 {[%emt 0:00:54]} (37... Be8 {was worth a try.} 38. g4 Bb5) 38. Kf5 {[%emt 0:04:55] White is clearly winning.} Be8 {[%emt 0:00:56]} 39. Bd5 {[%emt 0:00:12]} a5 {[%emt 0:00:41]} 40. a3 {[%emt 0:00:15][%cal Ba2a3,Ba3b4][%mdl 32]} axb4 {[%emt 0:00:16]} (40... Bh5 $142 41. bxa5 bxa5) 41. axb4 {[%emt 0:50:02]} Kd6 {[%emt 0:50:48]} 42. Bc4 {[%emt 0:00:32]} Ke7 {[%emt 0:00:27]} 43. h4 {[%emt 0:00:00][%cal Bh3h4,Bh4h5][%mdl 32]} Bh5 {[%emt 0:00:00]} 44. g4 {[%emt 0:00:00]} Be8 {[%emt 0:00:00]} 45. h5 {[%emt 0:00:00] Weighted Error Value: White=0.02 (flawless) /Black=0.26 (precise)} 1-0